Cogmind - Beta 16 @@@ ROGUE MODE // 2025.11.30 @ 18:51:41 Player: Mozco Result: Self-destructed Performance ------------- Evolutions (1) 500 Regions Visited (5) 1000 Robots Destroyed (40) 200 Value Destroyed (1179) 1179 Prototype IDs (5) 100 Alien Tech Used (0) 0 Bonus (367) 367 TOTAL SCORE: 3346 Bonus ------- Follower Combat Kills 158 Met Imprinter 300 Friendly Fire -91 Cogmind --------- Core Integrity 99/400 Matter 204/300 Energy 85/100 System Corruption 2% Temperature Cool (0) Movement Treading (160) Location -7/Zion Parts ------- > --- POWER (1) -------- (None) > --- PROPULSION (2) --- Improved Treads Improved Treads > --- UTILITY (3) ------ Large Storage Unit Advanced Target Analyzer Experimental Core Analyzer > --- WEAPON (3) ------- (None) > --- INVENTORY (15) --- Cooled Ion Engine Cooled Ion Engine Improved Treads Improved Treads Improved Treads Experimental Targeting Computer EM Pulse Gun GAL Module Peak State ------------ > --- POWER ------------ Cooled Ion Engine > --- PROPULSION ------- Improved Treads Improved Treads > --- UTILITY ---------- Large Storage Unit Advanced Target Analyzer Experimental Core Analyzer > --- WEAPON ----------- Particle Gun Assault Cannon RU-N14's Throwing Claymores > --- INVENTORY -------- Cooled Ion Engine Improved Treads Improved Treads Improved Treads Improved Treads Improved Treads Improved Treads Experimental Targeting Computer EM Pulse Gun Heavy Assault Rifle EMP Blaster RU-N14's Throwing Claymores RU-N14's Throwing Claymores RU-N14's Throwing Claymores GAL Module [Rating: 42] Favorites ----------- Power Cooled Ion Engine Engine Cooled Ion Engine Power Core Fission Core Propulsion Improved Treads Treads Improved Treads Leg Aluminum Leg Utility Large Storage Unit Device Improved Heat Sink Storage Large Storage Unit Processor Experimental Core Analyzer Hackware Experimental Hacking Suite Protection Weapon Shielding Weapon Heavy Assault Rifle Energy Gun Particle Gun Ballistic Gun Heavy Assault Rifle Ballistic Cannon Assault Cannon Launcher Rocket Launcher Special Weapon RU-N14's Throwing Claymores Build | -11 -10 -10 -9 -9 -7 ------- Run | Yrd Mat Min Mat Min Zio Slots Evolved 2 | . . . 2 . . Power . | . . . . . . Propulsion . | . . . . . . Utility 1 | . . . 1 . . Weapon 1 | . . . 1 . . Parts Attached 40 | 6 8 2 8 1 15 Power 4 | 1 . . 1 . 2 Engine 3 | 1 . . 1 . 1 Core 1 | . . . . . 1 Reactor . | . . . . . . Propulsion 13 | 2 3 . 4 1 3 Treads 7 | . . . 3 1 3 Leg 6 | 2 3 . 1 . . Wheel . | . . . . . . Hover . | . . . . . . Flight . | . . . . . . Utility 8 | 1 2 1 1 . 3 Device 1 | . . 1 . . . Storage 3 | 1 1 . 1 . . Processor 2 | . . . . . 2 Hackware 1 | . . . . . 1 Protection 1 | . 1 . . . . Artifact . | . . . . . . Weapon 15 | 2 3 1 2 . 7 Energy Gun 4 | 2 1 . . . 1 Energy Cannon . | . . . . . . Ballistic Gun 3 | . 1 . 2 . . Ballistic Cannon 1 | . . . . . 1 Launcher 3 | . 1 1 . . 1 Special Weapon 4 | . . . . . 4 Impact Weapon . | . . . . . . Slashing Weapon . | . . . . . . Piercing Weapon . | . . . . . . Special Melee Weapon . | . . . . . . Unidentified Prototypes 5 | . . . 1 . 4 Corrupted Parts 1 | . . 1 . . . System Corruption 4 | . . 4 . . . Parts Lost 11 | . . . 1 . 10 Power 2 | . . . 1 . 1 Propulsion 3 | . . . . . 3 Utility 1 | . . . . . 1 Weapon 5 | . . . . . 5 Highest Loss Streak 5 | . . . 1 . 5 To Critical Strikes . | . . . . . . Average Backups 12 | 2 7 10 12 14 13 Power 1 | . 1 1 1 2 1 Propulsion 5 | 1 3 4 6 7 6 Utility . | . . 2 . . . Weapon 4 | . 2 3 3 5 5 Tool/Special . | . . . . . . Unused Backups 17 | . 5 . 3 . 9 Power 3 | . . . 1 . 2 Propulsion 8 | . 4 . 1 . 3 Utility 2 | . 1 . . . 1 Weapon 4 | . . . 1 . 3 Tool/Special . | . . . . . . Average Slot Usage (%) 96 | . 88 100 81 100 98 Engine 10 | . 14 14 10 11 9 Treads 17 | . . . 18 22 21 Leg 5 | . 28 28 3 . . Device 3 | . . . 11 11 2 Storage 11 | . 14 14 11 11 11 Processor 10 | . . . . . 17 Protection 4 | . 3 14 1 11 2 Energy Gun 14 | . 27 23 20 11 10 Ballistic Gun 14 | . . . 3 22 17 Ballistic Cannon 1 | . . . . . 3 Peak Build Rating 42 | 6 9 11 20 21 42 Average Rating 25 | 4 7 9 14 20 34 On Entrance 11 | . 6 9 11 20 21 Avg Prop Armor Cover (%) 10 | . . . . . 10 Naked Turns . | . . . . . . Heaviest Build 44 | 14 22 23 39 39 44 Greatest Support 46 | 20 20 20 46 46 46 Greatest Overweight (x) 3 | 3 1 1 1 . 1 Average Overweight (x) . | . . 1 . . . Largest Inventory Capacity 15 | 8 10 10 15 15 15 Average Capacity 13 | 7 8 10 14 15 15 Most Carried 15 | 6 10 10 15 15 15 Average Carried 13 | 2 7 10 12 14 14 Final Capacity 15 | 8 10 10 15 15 15 Final Carried 15 | 6 10 10 15 15 8 Class Distribution -------------------- 43% | Gunner 29% | Tank 26% | Mutant Dominant Class ---------------- Mutant | -10/Materials Mutant | -10/Mines Mutant | -9/Materials Tank | -9/Mines Gunner | -7/Zion Resources | -11 -10 -10 -9 -9 -7 ----------- Run | Yrd Mat Min Mat Min Zio Matter Collected 788 | 240 101 10 199 17 221 Remotely . | . . . . . . Salvage Created 1024 | . 240 63 184 . 537 Parts 54 | . 11 7 7 . 29 Haulers Intercepted 2 | . . . 2 . . Recyclers Shooed 1 | . 1 . . . . Parts Field Recycled . | . . . . . . Retrieved Matter . | . . . . . . Parts Self-Destructed 2 | . . . . . 2 Prevented . | . . . . . . Parts Restored . | . . . . . . Kills | -11 -10 -10 -9 -9 -7 ------- Run | Yrd Mat Min Mat Min Zio Combat Hostiles Destroyed 24 | . 3 5 . . 16 Guns 7 | . 3 3 . . 1 Cannons 1 | . . . . . 1 AOE 16 | . . 2 . . 14 Classes Destroyed 12 | . 2 1 3 . 6 Hauler 2 | . . . 2 . . Recycler 2 | . 1 . 1 . . Operator 1 | . . . 1 . . Watcher 1 | . . . 1 . . Swarmer 3 | . . 3 . . . Grunt 5 | . 3 2 . . . Zionite 10 | . . . . . 10 Tinkerer 1 | . . . . . 1 Wasp 2 | . . . . . 2 Thug 4 | . . . . . 4 Savage 1 | . . . . . 1 Butcher 2 | . . . . . 2 Fireman 3 | . . . . . 3 Mutant 4 | . . . . . 4 Best Kill Streak 14 | . 3 3 2 . 14 Combat Bots Only 13 | . 2 3 . . 13 Max Kills in Single Turn 6 | . 1 1 1 . 6 Gunslinging . | . . . . . . Exploded 6 | . . 1 . . 6 Melee . | . . . . . . Uniques/NPCs Destroyed . | . . . . . . Combat | -11 -10 -10 -9 -9 -7 -------- Run | Yrd Mat Min Mat Min Zio Hostile Shots Fired 173 | . 24 17 6 . 126 Missed 45 | . 4 4 2 . 35 Hits 128 | . 20 13 4 . 91 Melee 10 | . . . . . 10 Projectile 118 | . 20 13 4 . 81 Critical Strikes 4 | . 2 1 . . 1 Part Disruptions 1 | . . . . . 1 Damage Taken 1990 | . 269 118 60 . 1543 Core 397 | . 81 15 . . 301 Absorbed by Shields . | . . . . . . Redirected to Shielding 12 | . . 3 9 . . Regen/Repaired (Parts) 26 | . 26 . . . . Core Remaining (%) 80 | 100 . 61 . . . Volleys Fired 95 | . 24 10 20 . 41 Largest 3 | . 2 2 3 . 3 Hottest 138 | . 105 115 138 . 135 Shots Fired 169 | . 48 15 42 . 64 Gun 144 | . 48 11 42 . 43 Cannon 3 | . . . . . 3 Launcher 8 | . . 4 . . 4 Special 14 | . . . . . 14 Kinetic 43 | . 5 . 6 . 32 Thermal 85 | . 24 11 36 . 14 Explosive 18 | . . 4 . . 14 Electromagnetic 23 | . 19 . . . 4 Robot Hit Streak 11 | . 7 2 10 . 11 Robot Miss Streak 4 | . 4 3 3 . 2 Penetration Max . | . . . . . . Secondary Targets . | . . . . . . Shots Hit Robots 89 | . 27 4 27 . 31 Core Hits 66 | . 9 6 8 . 43 Critical Kills . | . . . . . . Critical Parts Destroyed . | . . . . . . Critical Strikes 7 | . 2 . . . 5 Burn 2 | . 1 . . . 1 Corrupt 1 | . 1 . . . . Sever 4 | . . . . . 4 Melee Attacks . | . . . . . . Impact . | . . . . . . Slashing . | . . . . . . Piercing . | . . . . . . Sneak Attacks . | . . . . . . Combat Hostiles . | . . . . . . Follow-up Attacks . | . . . . . . Damage Inflicted 5167 | . 389 281 416 14 4067 Guns 1221 | . 383 61 416 . 361 Cannons 53 | . . . . . 53 Explosions 3525 | . . 220 . . 3305 Melee . | . . . . . . Ramming 20 | . 6 . . 14 . Kinetic 369 | . 16 . 77 . 276 Thermal 890 | . 237 61 339 . 253 Explosive 3205 | . . 220 . . 2985 Electromagnetic 335 | . 130 . . . 205 Impact . | . . . . . . Slashing 348 | . . . . . 348 Piercing . | . . . . . . Highest Corruption 4 | . . 4 . . 2 Average Corruption 1 | . . 4 . . 1 Corruption Purged . | . . . . . . Corruption Blocked . | . . . . . . Effects 3 | . . . . . 3 Matter Fused 1 | . . . . . 1 Parts Rejected 1 | . . . . . 1 Weapon Failures 1 | . . . . . 1 Overload Shots . | . . . . . . Overflow Damage 224 | . . 20 . . 204 Projectiles . | . . . . . . Explosions 224 | . . 20 . . 204 Melee . | . . . . . . Knockbacks 1 | . . . . . 1 Impact . | . . . . . . Kinetic 1 | . . . . . 1 Secondary . | . . . . . . Self-Inflicted Damage 89 | . . . . . 89 Shots 4 | . . . . . 4 Rammed 4 | . . . . 4 . Targets Rammed 7 | . 3 . . 4 . Kicked 3 | . 3 . . . . Crushed . | . . . . . . Highest Temperature 358 | . 358 270 42 . 155 Average Temperature 90 | . 134 116 7 . 57 Received Heat Transfer 745 | . 195 24 18 . 508 Effects 3 | . 1 2 . . . Shutdowns 1 | . 1 . . . . Interference 2 | . . 2 . . . Siege Activations . | . . . . . . Martial Activations . | . . . . . . Shielding Activations . | . . . . . . Robots Disrupted . | . . . . . . Combat Hostiles . | . . . . . . Robots Corrupted . | . . . . . . Combat Hostiles . | . . . . . . Parts Fried 2 | . 1 . . . 1 Impact Corruptions . | . . . . . . Robots Melted . | . . . . . . Combat Hostiles . | . . . . . . Parts Melted 2 | . 1 . 1 . . Heat Transferred 2157 | . 666 148 851 . 492 Parts Sabotaged . | . . . . . . Parts Stolen . | . . . . . . Parts Stripped . | . . . . . . Power Chain Reactions 1 | . . . . . 1 Alert | -11 -10 -10 -9 -9 -7 ------- Run | Yrd Mat Min Mat Min Zio Maximum Alert Level . | . . . . . . Low Security (%) 100 | 100 100 100 100 100 . Level 1 . | . . . . . . Level 2 . | . . . . . . Level 3 . | . . . . . . Level 4 . | . . . . . . Level 5 . | . . . . . . High Security . | . . . . . . Max Security . | . . . . . . Peak Influence 109 | . 50 95 109 22 . Initial 22 | . . . . 22 . Average 19 | . 9 42 64 . . Influence Increases 473 | . 109 155 209 . . Destroy 0b10 Robot/C 280 | . 60 100 120 . . Destroy 0b10 Robot/NC 30 | . 5 . 25 . . Destroy Leader 76 | . 20 20 36 . . Allied During Kill 27 | . . . 27 . . Successful Hack 9 | . 9 . . . . Destroy Structure 36 | . . 35 1 . . Lose Combat Pursuer 15 | . 15 . . . . Influence Decreases 473 | . 109 155 150 59 . Entered New Map 37 | . . . . 37 . Time Decay 426 | . 109 155 140 22 . Lost Part 10 | . . . 10 . . Squads Dispatched 2 | . . . 2 . . Investigation 1 | . . . 1 . . Extermination . | . . . . . . Reinforcement 1 | . . . 1 . . Assault . | . . . . . . Garrison . | . . . . . . Intercept . | . . . . . . Searches Triggered . | . . . . . . Construction Impeded . | . . . . . . Haulers Reinforced . | . . . . . . Active Scanning Responses . | . . . . . . Cargo Convoy Interrupts . | . . . . . . Stealth | -11 -10 -10 -9 -9 -7 --------- Run | Yrd Mat Min Mat Min Zio Distress Signals 1 | . . . 1 . . Communications Jammed . | . . . . . . Distress Signals . | . . . . . . Times Spotted 51 | . 6 5 8 . 32 Peak Tracking Total 17 | . 2 3 2 . 17 Tactical Retreats 6 | . 1 . . . 5 Traps | -11 -10 -10 -9 -9 -7 ------- Run | Yrd Mat Min Mat Min Zio Traps Triggered . | . . . . . . Indirectly . | . . . . . . Trap Hack Attempts . | . . . . . . Triggered . | . . . . . . Disarmed . | . . . . . . Reprogrammed . | . . . . . . Reused . | . . . . . . Traps Extracted . | . . . . . . Installed . | . . . . . . Triggered . | . . . . . . Machines | -11 -10 -10 -9 -9 -7 ---------- Run | Yrd Mat Min Mat Min Zio Machines Disabled 2 | . . . . . 2 Max in Single Turn 1 | . . . . . 1 Machines Repaired . | . . . . . . Machines Dismantled . | . . . . . . Machines Sabotaged . | . . . . . . Overloaded Fab Kills . | . . . . . . Hacking | -11 -10 -10 -9 -9 -7 --------- Run | Yrd Mat Min Mat Min Zio Machines Accessed 3 | . 2 . 1 . . Terminals 2 | . 1 . 1 . . Fabricators . | . . . . . . Repair Stations 1 | . 1 . . . . Recycling Units . | . . . . . . Scanalyzers . | . . . . . . Garrison Access . | . . . . . . Total Hacks 9 | . 5 . 4 . . Successful 5 | . 4 . 1 . . Failed 4 | . 1 . 3 . . Catastrophic . | . . . . . . Database Lockouts . | . . . . . . Manual 7 | . 3 . 4 . . Terminals 7 | . 3 . 4 . . Fabricators . | . . . . . . Repair Stations 2 | . 2 . . . . Recycling Units . | . . . . . . Scanalyzers . | . . . . . . Garrison Access . | . . . . . . Terminal Hacks 1 | . 1 . . . . Robot Analysis 1 | . 1 . . . . Fabricator Hacks . | . . . . . . Repair Station Hacks 2 | . 2 . . . . Scan Component 1 | . 1 . . . . Repair 1 | . 1 . . . . Recycling Unit Hacks . | . . . . . . Scanalyzer . | . . . . . . Garrison Access Hacks . | . . . . . . Unauthorized Hacks 2 | . 1 . 1 . . Terminals 2 | . 1 . 1 . . Botnet 2 | . 1 . 1 . . Fabricators . | . . . . . . Repair Stations . | . . . . . . Recycling Units . | . . . . . . Scanalyzers . | . . . . . . Garrison Access . | . . . . . . Data Cores Recovered . | . . . . . . Used . | . . . . . . Hacking Detections 2 | . 1 . 1 . . Full Trace Events 1 | . . . 1 . . Feedback Events . | . . . . . . Feedback Blocked . | . . . . . . Robot Schematics Acquired 4 | . . . . . 4 Robots Built . | . . . . . . Authchips . | . . . . . . Time . | . . . . . . Total Robot Build Rating . | . . . . . . Part Schematics Acquired 13 | . . . . . 13 Parts Built . | . . . . . . Authchips . | . . . . . . Time . | . . . . . . Total Part Build Rating . | . . . . . . Part Studies Acquired . | . . . . . . Parts Repaired 1 | . 1 . . . . Time 26 | . 26 . . . . Parts Recycled . | . . . . . . Recycled Matter . | . . . . . . Retrieved Matter . | . . . . . . Retrieved Components . | . . . . . . Parts Scanalyzed . | . . . . . . Part Schematics Acquired . | . . . . . . Parts Damaged . | . . . . . . Bothacking | -11 -10 -10 -9 -9 -7 ------------ Run | Yrd Mat Min Mat Min Zio Used RIF Installer . | . . . . . . Robots Hacked . | . . . . . . Non-combat . | . . . . . . Combat . | . . . . . . Robot Hacks Applied . | . . . . . . Relay Couplers Released . | . . . . . . Fabnet Peak Effective % . | . . . . . . Robots Rewired . | . . . . . . Allies Hacked . | . . . . . . Hacks Repelled . | . . . . . . Allies | -11 -10 -10 -9 -9 -7 -------- Run | Yrd Mat Min Mat Min Zio Total Allies 15 | . . 3 . . 12 Largest Group 15 | . . 3 3 3 15 Highest-Rated Group 346 | . . 40 40 40 346 Highest-Rated Ally 31 | . . 16 16 16 31 Total Orders . | . . . . . . Ally Attacks 47 | . . . 45 . 2 Total Damage 463 | . . . 446 . 17 Kills 6 | . . . 6 . . Allies Corrupted . | . . . . . . Allies Melted . | . . . . . . Intel | -11 -10 -10 -9 -9 -7 ------- Run | Yrd Mat Min Mat Min Zio Active Infowar (turns) . | . . . . . . Robot Analysis Total 1 | . 1 . . . . Derelict Logs Recovered 5 | . . 1 . 2 2 Drone Launches . | . . . . . . Drone Recoveries . | . . . . . . Exploration | -11 -10 -10 -9 -9 -7 ------------- Run | Yrd Mat Min Mat Min Zio Turns Passed 4951 | 74 516 356 325 823 2857 Spaces Moved 2870 | 48 310 172 140 509 1691 Core 11 | 11 . . . . . Treads 2325 | . . . 125 509 1691 Legs 534 | 37 310 172 15 . . Wheels . | . . . . . . Hover . | . . . . . . Flight . | . . . . . . Fastest Speed 50 | 50 120 190 160 160 160 Average Speed 157 | 123 125 190 163 160 160 Slowest Speed 240 | 200 190 190 240 160 240 Overloaded Moves . | . . . . . . Propulsion Burnouts . | . . . . . . Robots Hopped . | . . . . . . Potential Cave-ins . | . . . . . . Cave-ins Triggered . | . . . . . . Exploration Rate (%) 47 | 4 45 49 17 83 86 Regions Visited 5 Branch Regions 3 Pre-discovered Areas 4 | . . . . 1 3 Known Exits Taken . | . . . . . . Unknown Exits Taken 5 | 1 1 1 1 1 . Scrap Searched 5 | . . . . 2 3 Spaces Dug 13 | . . 11 . . 2 Terrain Destroyed 73 | . . 41 . . 32 Melee . | . . . . . . Projectile . | . . . . . . AOE 73 | . . 41 . . 32 Terrain Rammed . | . . . . . . Walls Destroyed . | . . . . . . Machines Disabled . | . . . . . . Actions | -11 -10 -10 -9 -9 -7 --------- Run | Yrd Mat Min Mat Min Zio Total 3125 | 59 392 186 196 515 1777 Wait 31 | . 26 1 . . 4 Move 2865 | 47 309 171 139 508 1691 Hop . | . . . . . . Pick Up 37 | 6 10 . 14 1 6 Fast Attach 22 | 6 2 . 5 . 9 Attach 11 | . 1 . 2 . 8 Detach . | . . . . . . Swap 22 | . 7 3 5 1 6 Drop 35 | . 10 1 11 1 12 Fire 95 | . 24 10 20 . 41 Melee . | . . . . . . Ram . | . . . . . . Kick 3 | . 3 . . . . Crush 4 | . . . . 4 . Escape Stasis . | . . . . . . Rewire . | . . . . . . Trap . | . . . . . . Miscellaneous . | . . . . . . Route ------- -11/Scrapyard -10/Materials (discovered 2 exits: *Mat / [*Min]) -10/Mines -9/Materials (discovered 2 exits: Mat / [*Min]) -9/Mines (discovered 4 exits: *Mat x2 / [*Exi] / [*Zio]) -7/Zion (discovered 1 exit: [*Pro]) History --------- Turn | Location | Event 14 | -11/Scrapyard | Discovered new exit (range 15) 75 | -11/Scrapyard | Entered Materials 207 | -10/Materials | Repaired EM Pulse Gun 317 | -10/Materials | Build established: Mutant 407 | -10/Materials | Discovered new exit (range 16) 553 | -10/Materials | Discovered new exit (range 16) 591 | -10/Materials | Entered Mines 598 | -10/Mines | Received a Rocket Launcher from a helpful Derelict 866 | -10/Mines | Discovered new exit (range 6) 883 | -10/Mines | Learned 2 Materials zone layouts 915 | -10/Mines | Assisted by bots powering up and referring to "LRC-V3" 943 | -10/Mines | Assembled infested the area 947 | -10/Mines | Entered Materials 947 | -9/Materials | Accompanied by 3 allies 947 | -9/Materials | Evolved 2 slots: Utility x1, Weapon x1 948 | -9/Materials | Identified exit to Materials 1184 | -9/Materials | Discovered new exit (range 11) 1272 | -9/Materials | Entered Mines 1272 | -9/Mines | Accompanied by 3 allies 1293 | -9/Mines | Discovered exit to Materials (range 10) 1327 | -9/Mines | Deemed a non-threat by the Exiles lab entrance 1327 | -9/Mines | Discovered new exit (range 5) 1402 | -9/Mines | Discovered exit to Materials (range 15) 1448 | -9/Mines | A Derelict revealed a hidden shortcut to a safe place 1518 | -9/Mines | Build established: Tank 1631 | -9/Mines | Learned location of Zion (-7) 1700 | -9/Mines | Learned Materials terminal intel 2095 | -9/Mines | Entered Zion 2095 | -7/Zion | Accompanied by 3 allies 2134 | -7/Zion | Gained Derelict followers 2249 | -7/Zion | Discovered new exit (range 9) 2297 | -7/Zion | Found Prototype Special Weapon 2300 | -7/Zion | Found Prototype Special Weapon 2303 | -7/Zion | Found Prototype Special Weapon 2305 | -7/Zion | Found Prototype Special Weapon 2601 | -7/Zion | Found GAL Module 2668 | -7/Zion | Found Prototype Processor 2668 | -7/Zion | Identified Exp. Target Analyzer 2671 | -7/Zion | Found Prototype Hackware 2671 | -7/Zion | Identified Exp. Hacking Suite 2675 | -7/Zion | Found Prototype Processor 2675 | -7/Zion | Identified Exp. Core Analyzer 2738 | -7/Zion | Learned location of Data Miner (-6) 2771 | -7/Zion | Given A8's code to call for help 2969 | -7/Zion | Build established: Gunner 2989 | -7/Zion | Gained Derelict followers 3011 | -7/Zion | Learned Factory stockpile data 3341 | -7/Zion | Found Prototype Processor 4099 | -7/Zion | Learned Factory security intel 4277 | -7/Zion | Identified RU-N14's Throwing Claymores (x4) 4796 | -7/Zion | Met Imprinter 4808 | -7/Zion | Attacked by Zionites 4841 | -7/Zion | Lost 3 allies 4848 | -7/Zion | Destroyed 13 combat bots 4881 | -7/Zion | Lost 4 parts (2n2w) 4921 | -7/Zion | Core integrity fell below 50% 4952 | -7/Zion | Self-destructed Last Messages --------------- 04926_ 7C-KRS(z) pulls a Mak. Spear out of the Twisted Machinery. 04930_ 1G-TX3(z) destroyed. 04930_ Chain reaction triggered in Corrupted Mak. Power Source. 04930_ Destroyed Mak. Power Source. 04930_ Cloak Generator disabled. 04930_ 7C-KRS(z) destroyed. 04930_ Beamcaster destroyed. 04930_ Destroyed Beamcaster. 04930_ Imp. Deuterium Engine destroyed. 04931_ System corrupted: Matter fused (-7). 04932_ EMP Blaster destroyed. 04934_ Hvy. Assault Rifle destroyed. 04936_ RU-N14's Throwing Claymores expended. 04936_ Destroyed Mak. Leg. 04936_ Component Analysis Suite fried. 04936_ B5-KON(z) destroyed. 04939_ LW-IB5(z) destroyed. 04948_ Imp. Treads destroyed. 04949_ System corrupted: Hvy. Assault Rifle jammed. 04952_ System corrupted: Hvy. Assault Rifle rejected. Map ----- +----------------------------------------------------+ | ??????????????????## "#????? | | ???????????????????## """ "##???? | | ????????????????????#" """""" "" """#???? | | ???????????????????#""## """ """"""" ""##???? | | ???????????????????###?####" """"" """#???? | | ?????????????????????????#""" """" """"???? | | ??????????????????????????#"" "" #"##???? | | ?????????????????????????##""" "" """#???? | | ???????????????????????#"#"""""" "" ""##???? | | ??????????????????????#""""""""" """#???? | | ??????????????????????""" "##???? | | ??????????????????????#"" "" ""##??? | | ??????????????????????""" """" """ """##?? | | ??????????????????????#"" """" "#"" """"### | | ???????????????????????#" "##" """"" """" | | ??????????????????????"#" """" """"" """ | | ?????????????????????#""" =""#" """"" "" | | ?????????????????????#"# =%/ #"" """" "" | | ??????????????????????#" " ""#"" " """ | | ??????????????????????#"" I#" ""#"" "" """" | | ??????????????????????#"" # ""#"" """""### | | ????????????????????#### """" ""##### | | ???????????##?###???#"# " "" ""#"""# | | ???????????#"##"#?####" % = " """""" | | ??????????##""""###"#"" = z " " "" | | ?????????##""""""""""""/%@= " " | | ??"""""??#""" """ = " " | | """"""""?#""" % = " | | #""" !=% | | ??"" ##"" z */"" | | ??""" ""# "#" # # | | ??""" ###"" ## ## "" | | ??""" ##"" "" | | ?""" ### # ##"""" """ | | ??# | = ## #"""" """""" """ | | """""????# % *%"" "#"#"" """" | | ?????????#" ! #[=""" """""" """"""" | | ?????????##" [ [ ## """"""""" """"" """""""" | | ?????#####"##! % " ##"#"""""" """""""" | | ????##"""#### #"### ###"" "" """#" | | ????#" = % ##"#??#?##" """" | | ????#" ==* #?##?????#"" """" | | ????#"% ! #????????#"" | | ????## #### #????????#"" | | ?????# #??######????????#""""""""" """ | | ?????# #????????????????##""#""#"" """"""" "" | | ????"" "?????????????????#####"#"""""#"###"""""" | | ???##" *"?????????????????????####"######?#"""""# | | ???? " "????????????????????????"##??????###"""" | | ??? ????????????????????????#??????????##### | +----------------------------------------------------+ Best States ------------- Heat Dissipation 42 Energy Generation 18 Energy Capacity 310 Matter Stores 300 Matter Capacity 300 Sight Range 16 Terrain Scan Density 10 Weapon Shielding 33 Evasion (%) 55 Target Analysis 8 Core Analysis 8 Recoil Reduction 2 Item Schematics ----------------- Hvy. Laser | -7/Zion | Archive Kinecellerator | -7/Zion | Archive Chainsword | -7/Zion | Archive Angular Momentum Engine | -7/Zion | Archive Imp. Shield Generator | -7/Zion | Archive Energy Well | -7/Zion | Archive Imp. Plasma Cutter | -7/Zion | Archive Imp. Focal Shield | -7/Zion | Archive Gauss Cannon | -7/Zion | Archive Coil Gun | -7/Zion | Archive Imp. Heavy Armor Plating | -7/Zion | Archive Lgt. Fission Core | -7/Zion | Archive Gravmag System | -7/Zion | Archive Robot Schematics ------------------ K-01 Serf | -7/Zion | Archive T-07 Excavator | -7/Zion | Archive R-06 Scavenger | -7/Zion | Archive X-77 Beamer | -7/Zion | Archive Fabricated ------------ Nothing Repaired ---------- EM Pulse Gun | 42% | -10/Materials Studied --------- None Alien Tech Used ----------------- None Achievements -------------- None Challenges ------------ None Game ------ Seed LaserHardenedCompactor Manual? 0 Play Time 00:21:01 Cumulative 363.7 hours Start 2025.11.30 @ 18:29:48 End 2025.11.30 @ 18:51:41 Sessions 1 Manual Loads 0 Difficulty Rogue Special Mode None Game No. 369 Rogue 365 Adventurer 3 Explorer 1 Win Type - Total 3 Types 2/0/1/0/0/0/0/0/0/0 Lore% 83 Gallery% 79 Achievement% 67 Wizard Run 0 Options --------- Layout 0 ASCII 0 Keyboard 0 Movement Mouse Keybinds 0 Fullscreen 2 Font 18/SmallcapsGlow Map View 76x50 Zoom Use 0% Tactical HUD 1 Map Filters NONE Filters NONE Steam 1 RUN: 48fa2092-a1de-4095-8052-65fdea0df751